[Event "*** Titled Tuesday Blitz"]
[Site "Chess.com"]
[Date "2020.12.29"]
[Round "11"]
[White "NoGalloNoParty"]
[Black "AttilaTurzo"]
[Result "0-1"]
[WhiteElo "2381"]
[BlackElo "2494"]
[TimeControl "180+1"]
[EndTime "12:04:37 PST"]
[Termination "AttilaTurzo won on time"]

1. d4 {[%clk 0:03:00.4]} 1... d5 {[%clk 0:02:56.4]} 2. Nf3 {[%clk 0:03:00.9]}
2... c6 {[%clk 0:02:55.1]} 3. c4 {[%clk 0:03:01.1]} 3... Nf6 {[%clk 0:02:54.5]}
4. Qc2 {[%clk 0:03:00.9]} 4... a6 {[%clk 0:02:48.1]} 5. a4 {[%clk 0:02:50.7]}
5... Bg4 {[%clk 0:02:30.7]} 6. Ne5 {[%clk 0:02:45.1]} 6... Bh5 {[%clk
0:02:29.1]} 7. e3 {[%clk 0:02:43]} 7... e6 {[%clk 0:02:28.8]} 8. c5 {[%clk
0:02:28.6]} 8... Nbd7 {[%clk 0:02:21.8]} 9. Nd3 {[%clk 0:01:58.4]} 9... Be7
{[%clk 0:02:17.1]} 10. Qb3 {[%clk 0:01:40.6]} 10... Qc7 {[%clk 0:02:10.6]} 11.
a5 {[%clk 0:01:35.2]} 11... O-O {[%clk 0:02:08.5]} 12. Nc3 {[%clk 0:01:34]}
12... Rae8 {[%clk 0:01:51.8]} 13. Be2 {[%clk 0:01:28.2]} 13... Bxe2 {[%clk
0:01:45.2]} 14. Nxe2 {[%clk 0:01:27.8]} 14... e5 {[%clk 0:01:40.2]} 15. O-O
{[%clk 0:01:19.4]} 15... exd4 {[%clk 0:01:31.2]} 16. exd4 {[%clk 0:01:17.9]}
16... Bxc5 {[%clk 0:01:31]} 17. Nxc5 {[%clk 0:00:52.3]} 17... Nxc5 {[%clk
0:01:30.5]} 18. Qf3 {[%clk 0:00:50.8]} 18... Nce4 {[%clk 0:01:22.8]} 19. Bf4
{[%clk 0:00:49.5]} 19... Qd7 {[%clk 0:01:23.1]} 20. Rfe1 {[%clk 0:00:42.4]}
20... Re6 {[%clk 0:01:18.6]} 21. h3 {[%clk 0:00:34.7]} 21... Rfe8 {[%clk
0:01:18.8]} 22. Be5 {[%clk 0:00:26.5]} 22... Nd2 {[%clk 0:01:08.8]} 23. Qd3
{[%clk 0:00:24.9]} 23... Nc4 {[%clk 0:01:06.4]} 24. Nf4 {[%clk 0:00:21.1]} 24...
Nxe5 {[%clk 0:01:02.7]} 25. dxe5 {[%clk 0:00:18.9]} 25... Rxe5 {[%clk
0:01:02.6]} 26. Rxe5 {[%clk 0:00:18.2]} 26... Rxe5 {[%clk 0:01:03.5]} 27. Qd4
{[%clk 0:00:15.4]} 27... Re4 {[%clk 0:01:01.3]} 0-1

[Event "*** Titled Tuesday Blitz"]
[Site "Chess.com"]
[Date "2020.12.29"]
[Round "11"]
[White "VerdeNotte"]
[Black "kingofthenil"]
[Result "0-1"]
[WhiteElo "2873"]
[BlackElo "2781"]
[TimeControl "180+1"]
[EndTime "12:04:41 PST"]
[Termination "kingofthenil won by checkmate"]

1. a3 {[%clk 0:03:00.9]} 1... d5 {[%clk 0:02:53.7]} 2. Nf3 {[%clk 0:03:00]} 2...
Nf6 {[%clk 0:02:49.9]} 3. b4 {[%clk 0:02:59.5]} 3... Bg4 {[%clk 0:02:35.2]} 4.
Ne5 {[%clk 0:02:59.6]} 4... Bf5 {[%clk 0:02:34.6]} 5. Bb2 {[%clk 0:02:59.5]}
5... e6 {[%clk 0:02:34]} 6. d3 {[%clk 0:02:59.5]} 6... Nbd7 {[%clk 0:02:33.9]}
7. Nd2 {[%clk 0:02:54.4]} 7... Bd6 {[%clk 0:02:32.7]} 8. Nxd7 {[%clk 0:02:51.2]}
8... Qxd7 {[%clk 0:02:32.6]} 9. e4 {[%clk 0:02:51.4]} 9... dxe4 {[%clk
0:02:25.5]} 10. dxe4 {[%clk 0:02:46.3]} 10... Nxe4 {[%clk 0:02:17]} 11. Nxe4
{[%clk 0:02:46.2]} 11... Bxe4 {[%clk 0:02:17.9]} 12. Bxg7 {[%clk 0:02:34]} 12...
Rg8 {[%clk 0:02:17.2]} 13. Bf6 {[%clk 0:02:27.3]} 13... Qc6 {[%clk 0:01:48.8]}
14. Qh5 {[%clk 0:02:21.6]} 14... Qxc2 {[%clk 0:01:37.3]} 15. Rd1 {[%clk
0:02:14.5]} 15... Rg6 {[%clk 0:01:20.8]} 16. Bb5+ {[%clk 0:02:12.7]} 16... c6
{[%clk 0:01:05.5]} 17. Rxd6 {[%clk 0:02:08.6]} 17... Rxf6 {[%clk 0:01:00.4]} 18.
Qe5 {[%clk 0:01:49.2]} 18... Qxf2+ {[%clk 0:00:53.3]} 19. Kd1 {[%clk 0:01:49.3]}
19... Qc2+ {[%clk 0:00:48.9]} 20. Ke1 {[%clk 0:01:49.4]} 20... Qf2+ {[%clk
0:00:43.4]} 21. Kd1 {[%clk 0:01:49.5]} 21... Bc2+ {[%clk 0:00:43.7]} 22. Kc1
{[%clk 0:01:49.7]} 22... cxb5 {[%clk 0:00:42.9]} 23. Rd2 {[%clk 0:01:40.1]}
23... Qf5 {[%clk 0:00:42.5]} 24. Qd6 {[%clk 0:01:32.3]} 24... Be4 {[%clk
0:00:40.1]} 25. Kb2 {[%clk 0:01:30.4]} 25... Bd5 {[%clk 0:00:34.7]} 26. Re1
{[%clk 0:01:26.1]} 26... Rd8 {[%clk 0:00:31.5]} 27. Qc5 {[%clk 0:01:26.1]} 27...
Bc6 {[%clk 0:00:27.4]} 28. Rxd8+ {[%clk 0:01:19]} 28... Kxd8 {[%clk 0:00:28.3]}
29. Qf8+ {[%clk 0:01:18.5]} 29... Kd7 {[%clk 0:00:22.1]} 30. Re2 {[%clk
0:01:13.4]} 30... Qd3 {[%clk 0:00:18.2]} 31. Rc2 {[%clk 0:01:07.1]} 31... Qd4+
{[%clk 0:00:17.3]} 32. Ka2 {[%clk 0:00:58.6]} 32... Bd5+ {[%clk 0:00:17.2]} 33.
Kb1 {[%clk 0:00:59.2]} 33... Rf1+ {[%clk 0:00:16.7]} 34. Rc1 {[%clk 0:00:59.6]}
34... Qd3+ {[%clk 0:00:17.1]} 35. Kb2 {[%clk 0:00:59.1]} 35... Qb3+ {[%clk
0:00:17.4]} 36. Ka1 {[%clk 0:00:58.1]} 36... Qa2# {[%clk 0:00:18.3]} 0-1

[Event "*** Titled Tuesday Blitz"]
[Site "Chess.com"]
[Date "2020.12.29"]
[Round "11"]
[White "vanyakuba"]
[Black "Lady_Nika"]
[Result "0-1"]
[WhiteElo "2447"]
[BlackElo "2341"]
[TimeControl "180+1"]
[EndTime "12:04:41 PST"]
[Termination "Lady_Nika won on time"]

1. e4 {[%clk 0:03:00.9]} 1... e6 {[%clk 0:03:00]} 2. d4 {[%clk 0:03:00.8]} 2...
d5 {[%clk 0:03:00.3]} 3. exd5 {[%clk 0:03:00.4]} 3... exd5 {[%clk 0:03:00.5]} 4.
Nf3 {[%clk 0:03:01.3]} 4... Nf6 {[%clk 0:03:00.8]} 5. c4 {[%clk 0:03:01.2]} 5...
c6 {[%clk 0:03:00.2]} 6. Nc3 {[%clk 0:03:01]} 6... Be7 {[%clk 0:02:59.9]} 7.
cxd5 {[%clk 0:03:00.1]} 7... cxd5 {[%clk 0:02:59.9]} 8. Bd3 {[%clk 0:02:59.8]}
8... O-O {[%clk 0:02:59.3]} 9. h3 {[%clk 0:03:00.1]} 9... Nc6 {[%clk 0:02:59.3]}
10. O-O {[%clk 0:03:00.3]} 10... h6 {[%clk 0:02:59.5]} 11. a3 {[%clk 0:02:59.5]}
11... a6 {[%clk 0:02:59.2]} 12. Re1 {[%clk 0:02:59.9]} 12... Re8 {[%clk
0:02:56.5]} 13. b4 {[%clk 0:02:57.2]} 13... b5 {[%clk 0:02:56]} 14. Bb2 {[%clk
0:02:57]} 14... Bd7 {[%clk 0:02:50.9]} 15. Rc1 {[%clk 0:02:51.4]} 15... Qb6
{[%clk 0:02:49.7]} 16. Ne5 {[%clk 0:02:32.4]} 16... Rad8 {[%clk 0:02:25.5]} 17.
Ne2 {[%clk 0:02:20.2]} 17... Nxe5 {[%clk 0:02:23.1]} 18. dxe5 {[%clk 0:02:20]}
18... Ne4 {[%clk 0:02:23.3]} 19. Bd4 {[%clk 0:01:39.8]} 19... Qb7 {[%clk
0:02:22.3]} 20. f3 {[%clk 0:01:38.7]} 20... Ng5 {[%clk 0:02:17.9]} 21. Qd2
{[%clk 0:01:29.7]} 21... Ne6 {[%clk 0:02:15.8]} 22. f4 {[%clk 0:01:28.4]} 22...
Nxd4 {[%clk 0:02:11.5]} 23. Nxd4 {[%clk 0:01:28.5]} 23... Rc8 {[%clk 0:02:11.8]}
24. Bf5 {[%clk 0:01:12.2]} 24... Bxf5 {[%clk 0:02:05.1]} 25. Nxf5 {[%clk
0:01:12.2]} 25... Rc4 {[%clk 0:02:04.3]} 26. Rcd1 {[%clk 0:00:54.9]} 26... Rd8
{[%clk 0:02:02.4]} 27. Kh2 {[%clk 0:00:47.5]} 27... Bf8 {[%clk 0:02:00.6]} 28.
g3 {[%clk 0:00:37.3]} 28... d4 {[%clk 0:01:55]} 29. Rc1 {[%clk 0:00:18.5]} 29...
Qc8 {[%clk 0:01:53.1]} 30. g4 {[%clk 0:00:16.8]} 30... g6 {[%clk 0:01:47.4]} 31.
Ng3 {[%clk 0:00:17.1]} 31... Qc6 {[%clk 0:01:44.5]} 32. Ne4 {[%clk 0:00:15.8]}
32... Bg7 {[%clk 0:01:44.8]} 33. Kg2 {[%clk 0:00:09.9]} 33... Rxc1 {[%clk
0:01:43.8]} 34. Qxc1 {[%clk 0:00:09.8]} 34... Qd5 {[%clk 0:01:42.8]} 35. Qc5
{[%clk 0:00:08.1]} 35... Qa2+ {[%clk 0:01:42.6]} 36. Kg1 {[%clk 0:00:05.7]}
36... d3 {[%clk 0:01:42.9]} 37. f5 {[%clk 0:00:03.8]} 37... d2 {[%clk
0:01:42.1]} 38. Rd1 {[%clk 0:00:03.6]} 38... Qb3 {[%clk 0:01:41.9]} 39. Nf2
{[%clk 0:00:02.1]} 39... Qg3+ {[%clk 0:01:41]} 40. Kf1 {[%clk 0:00:01.9]} 40...
gxf5 {[%clk 0:01:40.1]} 41. gxf5 {[%clk 0:00:01.9]} 41... Bxe5 {[%clk 0:01:40]}
42. Qc6 {[%clk 0:00:01]} 42... Bd4 {[%clk 0:01:37.6]} 0-1

[Event "*** Titled Tuesday Blitz"]
[Site "Chess.com"]
[Date "2020.12.29"]
[Round "11"]
[White "The_filthy"]
[Black "Alexey_Ustinov"]
[Result "0-1"]
[WhiteElo "2307"]
[BlackElo "2454"]
[TimeControl "180+1"]
[EndTime "12:04:42 PST"]
[Termination "Alexey_Ustinov won by checkmate"]

1. e4 {[%clk 0:03:00.9]} 1... d5 {[%clk 0:02:58.8]} 2. exd5 {[%clk 0:03:00.9]}
2... Qxd5 {[%clk 0:02:59.7]} 3. Nc3 {[%clk 0:03:01.7]} 3... Qa5 {[%clk 0:02:58]}
4. Nf3 {[%clk 0:03:02.1]} 4... Nf6 {[%clk 0:02:55]} 5. Be2 {[%clk 0:03:02.4]}
5... Bg4 {[%clk 0:02:54.5]} 6. O-O {[%clk 0:03:02.5]} 6... Nc6 {[%clk
0:02:54.3]} 7. h3 {[%clk 0:03:02.7]} 7... Bh5 {[%clk 0:02:49.3]} 8. a3 {[%clk
0:03:02.8]} 8... e6 {[%clk 0:02:48.1]} 9. d3 {[%clk 0:03:03.1]} 9... O-O-O
{[%clk 0:02:46.9]} 10. Bd2 {[%clk 0:03:01.5]} 10... Qf5 {[%clk 0:02:38.2]} 11.
Nh4 {[%clk 0:02:34.1]} 11... Bxe2 {[%clk 0:02:35.4]} 12. Nxe2 {[%clk 0:02:28.8]}
12... Qh5 {[%clk 0:02:30.9]} 13. Nf3 {[%clk 0:02:27.1]} 13... Bd6 {[%clk
0:02:26.4]} 14. Bf4 {[%clk 0:02:22.3]} 14... e5 {[%clk 0:02:20.4]} 15. Bh2
{[%clk 0:02:21.7]} 15... e4 {[%clk 0:02:18.9]} 16. Nd2 {[%clk 0:02:08.1]} 16...
Bxh2+ {[%clk 0:02:12.7]} 17. Kxh2 {[%clk 0:02:07.9]} 17... exd3 {[%clk
0:02:12.9]} 18. cxd3 {[%clk 0:02:05.5]} 18... Rxd3 {[%clk 0:02:11.9]} 19. Nf4
{[%clk 0:01:56.8]} 19... Qe5 {[%clk 0:02:06.3]} 20. g3 {[%clk 0:01:53.5]} 20...
Rd7 {[%clk 0:02:02]} 21. Qc2 {[%clk 0:01:49]} 21... Rhd8 {[%clk 0:01:53.3]} 22.
Nc4 {[%clk 0:01:44.7]} 22... Qe4 {[%clk 0:01:48.3]} 23. Qa4 {[%clk 0:01:39.6]}
23... Ne5 {[%clk 0:01:39.2]} 24. Rac1 {[%clk 0:01:35.9]} 24... Nf3+ {[%clk
0:01:38.2]} 25. Kh1 {[%clk 0:01:30]} 25... Kb8 {[%clk 0:01:14.4]} 26. b3 {[%clk
0:01:08.4]} 26... g5 {[%clk 0:00:46.1]} 27. Ng2 {[%clk 0:01:03.1]} 27... Qe6
{[%clk 0:00:38]} 28. g4 {[%clk 0:00:51.2]} 28... Nxg4 {[%clk 0:00:32.1]} 29.
Rce1 {[%clk 0:00:42.9]} 29... Nxf2+ {[%clk 0:00:22.6]} 30. Rxf2 {[%clk
0:00:41.4]} 30... Qxh3# {[%clk 0:00:23]} 0-1

[Event "*** Titled Tuesday Blitz"]
[Site "Chess.com"]
[Date "2020.12.29"]
[Round "11"]
[White "GMJustin"]
[Black "zverr1"]
[Result "0-1"]
[WhiteElo "2301"]
[BlackElo "2435"]
[TimeControl "180+1"]
[EndTime "12:04:43 PST"]
[Termination "zverr1 won on time"]

1. d4 {[%clk 0:02:53.6]} 1... Nf6 {[%clk 0:02:59.4]} 2. c4 {[%clk 0:02:52.7]}
2... e6 {[%clk 0:02:59.6]} 3. Nc3 {[%clk 0:02:45.5]} 3... d5 {[%clk 0:02:58.8]}
4. Bg5 {[%clk 0:02:43.5]} 4... Bb4 {[%clk 0:02:56.7]} 5. e3 {[%clk 0:02:37.8]}
5... h6 {[%clk 0:02:53.7]} 6. Bxf6 {[%clk 0:02:28.2]} 6... Qxf6 {[%clk
0:02:52.8]} 7. Qb3 {[%clk 0:02:25.2]} 7... Bxc3+ {[%clk 0:02:37.5]} 8. Qxc3
{[%clk 0:02:20.6]} 8... O-O {[%clk 0:02:26]} 9. cxd5 {[%clk 0:02:13.7]} 9...
exd5 {[%clk 0:02:26.7]} 10. Qxc7 {[%clk 0:02:13]} 10... Nc6 {[%clk 0:02:26.6]}
11. Bd3 {[%clk 0:01:50.9]} 11... Bf5 {[%clk 0:02:09.2]} 12. Bxf5 {[%clk
0:01:46.5]} 12... Qxf5 {[%clk 0:02:09.4]} 13. Nf3 {[%clk 0:01:43.4]} 13... Qd3
{[%clk 0:02:05.8]} 14. Qd6 {[%clk 0:00:48.6]} 14... a5 {[%clk 0:01:53.4]} 15.
Qa3 {[%clk 0:00:43.6]} 15... Qa6 {[%clk 0:01:53.1]} 16. Qc3 {[%clk 0:00:21.6]}
16... Rac8 {[%clk 0:01:44.4]} 17. Rc1 {[%clk 0:00:18.9]} 17... Nb4 {[%clk
0:01:39.9]} 18. Qxc8 {[%clk 0:00:16.7]} 18... Rxc8 {[%clk 0:01:40.8]} 19. Rxc8+
{[%clk 0:00:16.3]} 19... Kh7 {[%clk 0:01:41.7]} 20. Rc3 {[%clk 0:00:12.3]} 20...
Nxa2 {[%clk 0:01:38.7]} 21. Rc2 {[%clk 0:00:06.8]} 21... Nb4 {[%clk 0:01:35.2]}
22. Rd2 {[%clk 0:00:06.8]} 22... Qc4 {[%clk 0:01:34.9]} 23. h4 {[%clk
0:00:02.3]} 23... Qc1+ {[%clk 0:01:28.3]} 24. Rd1 {[%clk 0:00:02]} 24... Qxb2
{[%clk 0:01:28.2]} 25. O-O {[%clk 0:00:01.8]} 25... a4 {[%clk 0:01:20.7]} 26.
Rb1 {[%clk 0:00:01.8]} 26... Qc3 {[%clk 0:01:19.9]} 27. Rfc1 {[%clk 0:00:01.9]}
27... Qa3 {[%clk 0:01:16.2]} 28. Rc7 {[%clk 0:00:01.5]} 28... Nc6 {[%clk
0:01:02.8]} 29. Rcxb7 {[%clk 0:00:01.6]} 29... Qd3 {[%clk 0:01:03.3]} 0-1

[Event "*** Titled Tuesday Blitz"]
[Site "Chess.com"]
[Date "2020.12.29"]
[Round "11"]
[White "Godzillator"]
[Black "WPWPWP-2015"]
[Result "0-1"]
[WhiteElo "2344"]
[BlackElo "2474"]
[TimeControl "180+1"]
[EndTime "12:04:50 PST"]
[Termination "WPWPWP-2015 won by resignation"]

1. d4 {[%clk 0:01:06.9]} 1... Nf6 {[%clk 0:02:54.8]} 2. c4 {[%clk 0:01:07.1]}
2... e6 {[%clk 0:02:54.4]} 3. Nc3 {[%clk 0:01:07.6]} 3... Bb4 {[%clk 0:02:53.2]}
4. Qc2 {[%clk 0:01:08.2]} 4... d5 {[%clk 0:02:52.4]} 5. cxd5 {[%clk 0:01:07.4]}
5... Qxd5 {[%clk 0:02:53]} 6. Nf3 {[%clk 0:01:07.7]} 6... Qf5 {[%clk 0:02:52.7]}
7. Qxf5 {[%clk 0:01:07.9]} 7... exf5 {[%clk 0:02:52.3]} 8. a3 {[%clk 0:01:08.8]}
8... Be7 {[%clk 0:02:51]} 9. Bf4 {[%clk 0:01:08.8]} 9... c6 {[%clk 0:02:51.1]}
10. e3 {[%clk 0:01:05.5]} 10... Nbd7 {[%clk 0:02:51.1]} 11. Bd3 {[%clk
0:01:05.6]} 11... Nb6 {[%clk 0:02:50.4]} 12. Nd2 {[%clk 0:01:05.7]} 12... Be6
{[%clk 0:02:49.3]} 13. h3 {[%clk 0:01:05.3]} 13... a5 {[%clk 0:02:48.5]} 14. O-O
{[%clk 0:01:04.4]} 14... g6 {[%clk 0:02:47.4]} 15. Rfc1 {[%clk 0:01:03.8]} 15...
Nfd5 {[%clk 0:02:47.3]} 16. Bg3 {[%clk 0:01:02]} 16... h5 {[%clk 0:02:46]} 17.
Nxd5 {[%clk 0:00:59.5]} 17... Bxd5 {[%clk 0:02:42.9]} 18. Nc4 {[%clk 0:00:58.7]}
18... Nxc4 {[%clk 0:02:34.9]} 19. Bxc4 {[%clk 0:00:59]} 19... Be6 {[%clk
0:02:32.3]} 20. Bxe6 {[%clk 0:00:57]} 20... fxe6 {[%clk 0:02:32]} 21. Be5 {[%clk
0:00:57.6]} 21... Rg8 {[%clk 0:02:30.4]} 22. a4 {[%clk 0:00:57.3]} 22... g5
{[%clk 0:02:28.9]} 23. Kf1 {[%clk 0:00:55.9]} 23... g4 {[%clk 0:02:26.7]} 24.
hxg4 {[%clk 0:00:55.9]} 24... fxg4 {[%clk 0:02:25.1]} 25. g3 {[%clk 0:00:55.3]}
25... Kd7 {[%clk 0:02:23.2]} 26. Ke2 {[%clk 0:00:55]} 26... Bd6 {[%clk
0:01:44.8]} 27. Bxd6 {[%clk 0:00:53.6]} 27... Kxd6 {[%clk 0:01:44.4]} 28. Rh1
{[%clk 0:00:52.7]} 28... Rg5 {[%clk 0:01:44]} 29. Rac1 {[%clk 0:00:49.1]} 29...
b6 {[%clk 0:01:27.7]} 30. Rh4 {[%clk 0:00:48.5]} 30... b5 {[%clk 0:01:14.4]} 31.
axb5 {[%clk 0:00:47.3]} 31... cxb5 {[%clk 0:01:14.6]} 32. Rc5 {[%clk 0:00:42.9]}
32... Rxc5 {[%clk 0:01:12.2]} 33. dxc5+ {[%clk 0:00:43.2]} 33... Kxc5 {[%clk
0:01:12.4]} 34. Rxh5+ {[%clk 0:00:44.1]} 34... Kc4 {[%clk 0:01:11.2]} 35. Rg5
{[%clk 0:00:42.9]} 35... b4 {[%clk 0:01:10.3]} 36. Rxg4+ {[%clk 0:00:39.1]}
36... Kb3 {[%clk 0:01:10.7]} 37. Re4 {[%clk 0:00:34.9]} 37... Kxb2 {[%clk
0:01:07.7]} 38. g4 {[%clk 0:00:33.8]} 38... a4 {[%clk 0:01:07.9]} 39. Rxb4+
{[%clk 0:00:33.2]} 39... Kc2 {[%clk 0:01:05.7]} 40. Re4 {[%clk 0:00:32]} 40...
a3 {[%clk 0:01:04.6]} 41. Rxe6 {[%clk 0:00:32.3]} 41... a2 {[%clk 0:01:05]} 42.
Rc6+ {[%clk 0:00:32.6]} 42... Kb2 {[%clk 0:01:04.7]} 43. Rb6+ {[%clk 0:00:32.7]}
43... Ka3 {[%clk 0:01:04.9]} 0-1

[Event "*** Titled Tuesday Blitz"]
[Site "Chess.com"]
[Date "2020.12.29"]
[Round "11"]
[White "GMHess"]
[Black "FairChess_on_YouTube"]
[Result "0-1"]
[WhiteElo "2890"]
[BlackElo "3021"]
[TimeControl "180+1"]
[EndTime "12:04:52 PST"]
[Termination "FairChess_on_YouTube won by resignation"]

1. d4 {[%clk 0:03:00.9]} 1... Nf6 {[%clk 0:02:58.5]} 2. c4 {[%clk 0:02:59.8]}
2... e6 {[%clk 0:02:58.5]} 3. Nc3 {[%clk 0:02:59.9]} 3... Bb4 {[%clk 0:02:57.6]}
4. Bd2 {[%clk 0:02:59.8]} 4... O-O {[%clk 0:02:56.4]} 5. a3 {[%clk 0:02:59.8]}
5... Bxc3 {[%clk 0:02:56.3]} 6. Bxc3 {[%clk 0:03:00.7]} 6... Ne4 {[%clk
0:02:56.3]} 7. Rc1 {[%clk 0:03:00.9]} 7... d6 {[%clk 0:02:49.6]} 8. g3 {[%clk
0:02:55]} 8... b6 {[%clk 0:02:37.3]} 9. Bg2 {[%clk 0:02:51.1]} 9... Bb7 {[%clk
0:02:37.2]} 10. Nf3 {[%clk 0:02:42.9]} 10... Nd7 {[%clk 0:02:36.3]} 11. O-O
{[%clk 0:02:42.9]} 11... f5 {[%clk 0:02:35.1]} 12. Nd2 {[%clk 0:02:10]} 12...
Ndf6 {[%clk 0:02:26.9]} 13. Nxe4 {[%clk 0:02:02.4]} 13... Bxe4 {[%clk
0:02:10.2]} 14. f3 {[%clk 0:01:59]} 14... Bb7 {[%clk 0:02:10.2]} 15. Qd3 {[%clk
0:01:59.2]} 15... Qe8 {[%clk 0:02:08.6]} 16. e4 {[%clk 0:01:45.9]} 16... fxe4
{[%clk 0:01:45.7]} 17. fxe4 {[%clk 0:01:46.8]} 17... Qg6 {[%clk 0:01:46]} 18. d5
{[%clk 0:01:17.2]} 18... e5 {[%clk 0:01:43.6]} 19. b4 {[%clk 0:01:07.2]} 19...
Bc8 {[%clk 0:01:35.3]} 20. Bd2 {[%clk 0:00:57.3]} 20... Qh5 {[%clk 0:01:29.2]}
21. c5 {[%clk 0:00:52.9]} 21... Bh3 {[%clk 0:01:22.2]} 22. cxd6 {[%clk
0:00:30.1]} 22... cxd6 {[%clk 0:01:23.1]} 23. Bf3 {[%clk 0:00:14.9]} 23... Ng4
{[%clk 0:01:13.2]} 24. Qe2 {[%clk 0:00:08.8]} 24... Bxf1 {[%clk 0:00:47.1]} 25.
Rxf1 {[%clk 0:00:09.7]} 25... Qh3 {[%clk 0:00:43.6]} 26. Bxg4 {[%clk 0:00:04]}
26... Rxf1+ {[%clk 0:00:42.7]} 27. Qxf1 {[%clk 0:00:04.9]} 27... Qxg4 {[%clk
0:00:43.1]} 28. Qc4 {[%clk 0:00:04.4]} 28... Qd1+ {[%clk 0:00:42.6]} 0-1

[Event "*** Titled Tuesday Blitz"]
[Site "Chess.com"]
[Date "2020.12.29"]
[Round "11"]
[White "Macron20hTF1"]
[Black "Vesper2018"]
[Result "0-1"]
[WhiteElo "2501"]
[BlackElo "2630"]
[TimeControl "180+1"]
[EndTime "12:04:52 PST"]
[Termination "Vesper2018 won on time"]

1. g3 {[%clk 0:03:00.9]} 1... Nf6 {[%clk 0:02:59.3]} 2. Bg2 {[%clk 0:03:01.2]}
2... g6 {[%clk 0:02:59.9]} 3. d3 {[%clk 0:03:01.4]} 3... Bg7 {[%clk 0:03:00.1]}
4. f4 {[%clk 0:03:02]} 4... O-O {[%clk 0:03:00.2]} 5. Nf3 {[%clk 0:03:02.7]}
5... d5 {[%clk 0:02:59.6]} 6. O-O {[%clk 0:03:01.9]} 6... c5 {[%clk 0:02:59.8]}
7. c3 {[%clk 0:03:02.5]} 7... Nc6 {[%clk 0:02:59.1]} 8. Na3 {[%clk 0:03:03.1]}
8... Bf5 {[%clk 0:02:47.9]} 9. Nh4 {[%clk 0:02:56.4]} 9... Qd7 {[%clk 0:02:39]}
10. Nxf5 {[%clk 0:02:49]} 10... gxf5 {[%clk 0:02:38.9]} 11. h3 {[%clk
0:02:38.1]} 11... e6 {[%clk 0:02:37.1]} 12. Bf3 {[%clk 0:02:26.9]} 12... a6
{[%clk 0:02:29.1]} 13. Kh1 {[%clk 0:02:24.3]} 13... b5 {[%clk 0:02:28.6]} 14.
Nc2 {[%clk 0:02:24.2]} 14... d4 {[%clk 0:02:22.7]} 15. cxd4 {[%clk 0:02:19.7]}
15... cxd4 {[%clk 0:02:21.6]} 16. Bd2 {[%clk 0:02:14.2]} 16... Nd5 {[%clk
0:02:20.4]} 17. Rg1 {[%clk 0:02:08.4]} 17... Kh8 {[%clk 0:02:14.5]} 18. g4
{[%clk 0:02:05]} 18... fxg4 {[%clk 0:02:13.9]} 19. hxg4 {[%clk 0:02:05.2]} 19...
Qd6 {[%clk 0:02:08.8]} 20. Qf1 {[%clk 0:02:02.8]} 20... Rac8 {[%clk 0:01:59]}
21. Be4 {[%clk 0:01:40.6]} 21... f5 {[%clk 0:01:51]} 22. Bf3 {[%clk 0:01:07]}
22... Nxf4 {[%clk 0:01:42.7]} 23. Ne1 {[%clk 0:00:42]} 23... Be5 {[%clk
0:01:30.5]} 24. Ng2 {[%clk 0:00:36.7]} 24... Nh3 {[%clk 0:01:28.7]} 25. Nh4
{[%clk 0:00:32.2]} 25... Nxg1 {[%clk 0:01:25.6]} 26. Qxg1 {[%clk 0:00:33.1]}
26... Bf4 {[%clk 0:01:19.2]} 27. Be1 {[%clk 0:00:18.4]} 27... Rg8 {[%clk
0:01:15.7]} 28. Qg2 {[%clk 0:00:18.5]} 28... Ne5 {[%clk 0:01:12.2]} 29. Bb7
{[%clk 0:00:11.9]} 29... Rc7 {[%clk 0:01:09.5]} 30. Ba8 {[%clk 0:00:02.8]} 30...
Rxg4 {[%clk 0:01:06.8]} 31. Qh3 {[%clk 0:00:03.4]} 31... Rcg7 {[%clk 0:01:05]}
32. Bf2 {[%clk 0:00:02.5]} 32... Qd8 {[%clk 0:00:57.8]} 0-1

[Event "*** Titled Tuesday Blitz"]
[Site "Chess.com"]
[Date "2020.12.29"]
[Round "11"]
[White "rychessmaster1"]
[Black "kai_nov"]
[Result "0-1"]
[WhiteElo "2535"]
[BlackElo "2393"]
[TimeControl "180+1"]
[EndTime "12:04:56 PST"]
[Termination "kai_nov won by checkmate"]

1. e4 {[%clk 0:03:00.9]} 1... c5 {[%clk 0:02:59.6]} 2. Nf3 {[%clk 0:03:01.4]}
2... Nc6 {[%clk 0:02:58]} 3. b3 {[%clk 0:03:01.2]} 3... e5 {[%clk 0:02:44.7]} 4.
Bb2 {[%clk 0:02:58.6]} 4... d6 {[%clk 0:02:43.9]} 5. Bb5 {[%clk 0:02:58.6]} 5...
Nf6 {[%clk 0:02:40.6]} 6. Bxc6+ {[%clk 0:02:56.1]} 6... bxc6 {[%clk 0:02:40]} 7.
Qe2 {[%clk 0:02:54.2]} 7... Nh5 {[%clk 0:02:29.5]} 8. O-O {[%clk 0:02:40.8]}
8... Nf4 {[%clk 0:02:26.7]} 9. Qe3 {[%clk 0:02:41.2]} 9... Be7 {[%clk
0:02:18.3]} 10. Na3 {[%clk 0:02:33.9]} 10... O-O {[%clk 0:02:15.6]} 11. Nc4
{[%clk 0:02:28.1]} 11... f5 {[%clk 0:02:13.4]} 12. d3 {[%clk 0:02:13]} 12... Bg5
{[%clk 0:01:55.8]} 13. Nxg5 {[%clk 0:02:04.1]} 13... Qxg5 {[%clk 0:01:55.8]} 14.
g3 {[%clk 0:02:02.3]} 14... Nh3+ {[%clk 0:01:54.6]} 15. Kh1 {[%clk 0:02:00]}
15... f4 {[%clk 0:01:55.1]} 16. gxf4 {[%clk 0:01:47.4]} 16... exf4 {[%clk
0:01:50.7]} 17. Qf3 {[%clk 0:01:35]} 17... Bg4 {[%clk 0:01:47.2]} 18. Qg2 {[%clk
0:01:35.6]} 18... f3 {[%clk 0:00:54.5]} 19. Qg3 {[%clk 0:01:35.2]} 19... d5
{[%clk 0:00:44.8]} 20. Ne3 {[%clk 0:01:27.5]} 20... h5 {[%clk 0:00:41.2]} 21.
exd5 {[%clk 0:00:49]} 21... Rf4 {[%clk 0:00:28.1]} 22. Nxg4 {[%clk 0:00:31.8]}
22... Qxg4 {[%clk 0:00:28.2]} 23. Qxg4 {[%clk 0:00:30]} 23... Rxg4 {[%clk
0:00:28.5]} 24. Bxg7 {[%clk 0:00:06]} 24... Rg1+ {[%clk 0:00:26.3]} 25. Rxg1
{[%clk 0:00:06.3]} 25... Nxf2# {[%clk 0:00:26.7]} 0-1